[Event "Titled Tuesday Blitz May 9 Early 2023"]
[White "Aravindh, Chithambaram VR."]
[Black "Rakotomaharo, Fy Antenaina"]
[WhiteFideId "5072786"]
[BlackFideId "13100050"]
[WhiteElo "2596"]
[BlackElo "2427"]
[Result "1-0"]
[Round "06"]
[TimeControl "180+2"]
[Date "2023.05.09"]
[WhiteClock "0:00:08"]
[BlackClock "0:00:00"]

1. Nf3 {[%clk 0:02:57]}  d5 {[%clk 0:02:59]} 2. d4 {[%clk 0:02:57]}  Nf6 {[%clk 0:02:59]} 3. Bg5 {[%clk 0:02:56]}  Ne4 {[%clk 0:02:55]} 4. Bf4 {[%clk 0:02:55]}  c6 {[%clk 0:02:55]} 5. e3 {[%clk 0:02:55]}  Bf5 {[%clk 0:02:55]} 6. Bd3 {[%clk 0:02:54]}  e6 {[%clk 0:02:54]} 7. O-O {[%clk 0:02:54]}  Nd7 {[%clk 0:02:51]} 8. Nbd2 {[%clk 0:02:54]}  Be7 {[%clk 0:02:50]} 9. h3 {[%clk 0:02:50]}  g5 {[%clk 0:02:50]} 10. Bh2 {[%clk 0:02:49]}  h5 {[%clk 0:02:51]} 11. Ne5 {[%clk 0:02:49]}  Nxd2 {[%clk 0:02:32]} 12. Qxd2 {[%clk 0:02:46]}  Bxd3 {[%clk 0:02:31]} 13. Qxd3 {[%clk 0:02:47]}  Nxe5 {[%clk 0:02:24]} 14. Bxe5 {[%clk 0:02:45]}  f6 {[%clk 0:02:18]} 15. Bg3 {[%clk 0:02:44]}  Kf7 {[%clk 0:02:14]} 16. f4 {[%clk 0:02:33]}  gxf4 {[%clk 0:02:01]} 17. Bxf4 {[%clk 0:02:31]}  Qg8 {[%clk 0:01:57]} 18. Rf3 {[%clk 0:02:29]}  Qg6 {[%clk 0:01:56]} 19. Qe2 {[%clk 0:02:27]}  Rag8 {[%clk 0:01:48]} 20. Raf1 {[%clk 0:02:28]}  Rh7 {[%clk 0:01:41]} 21. Be5 {[%clk 0:02:22]}  f5 {[%clk 0:01:39]} 22. e4 {[%clk 0:02:15]}  dxe4 {[%clk 0:01:36]} 23. Rg3 {[%clk 0:02:02]}  Qh6 {[%clk 0:01:17]} 24. Bf4 {[%clk 0:02:01]}  Qf8 {[%clk 0:01:15]} 25. Rxg8 {[%clk 0:01:58]}  Qxg8 {[%clk 0:01:15]} 26. Be5 {[%clk 0:01:59]}  Ke8 {[%clk 0:01:13]} 27. c4 {[%clk 0:01:56]}  Qg6 {[%clk 0:00:42]} 28. Rc1 {[%clk 0:01:45]}  Qf7 {[%clk 0:00:36]} 29. Rd1 {[%clk 0:01:35]}  Rh6 {[%clk 0:00:30]} 30. d5 {[%clk 0:01:31]}  exd5 {[%clk 0:00:30]} 31. cxd5 {[%clk 0:01:32]}  cxd5 {[%clk 0:00:30]} 32. Qb5+ {[%clk 0:01:32]}  Kf8 {[%clk 0:00:30]} 33. Rxd5 {[%clk 0:01:28]}  Rb6 {[%clk 0:00:29]} 34. Qd7 {[%clk 0:01:20]}  Bc5+ {[%clk 0:00:25]} 35. Kf1 {[%clk 0:01:14]}  Qxd7 {[%clk 0:00:25]} 36. Rxd7 {[%clk 0:01:15]}  Ke8 {[%clk 0:00:15]} 37. Rh7 {[%clk 0:01:13]}  Be3 {[%clk 0:00:12]} 38. Rxh5 {[%clk 0:01:08]}  f4 {[%clk 0:00:13]} 39. Rh4 {[%clk 0:01:04]}  Rb5 {[%clk 0:00:03]} 40. Bxf4 {[%clk 0:01:03]}  Bxf4 {[%clk 0:00:04]} 41. Rxf4 {[%clk 0:01:03]}  Rxb2 {[%clk 0:00:05]} 42. Rf2 {[%clk 0:00:54]}  Rb1+ {[%clk 0:00:04]} 43. Ke2 {[%clk 0:00:54]}  Kd7 {[%clk 0:00:04]} 44. Ke3 {[%clk 0:00:36]}  Re1+ {[%clk 0:00:04]} 45. Kd4 {[%clk 0:00:37]}  e3 {[%clk 0:00:04]} 46. Rf7+ {[%clk 0:00:36]}  Kc6 {[%clk 0:00:04]} 47. Re7 {[%clk 0:00:32]}  e2 {[%clk 0:00:04]} 48. Kd3 {[%clk 0:00:31]}  b5 {[%clk 0:00:02]} 49. Rxe2 {[%clk 0:00:29]}  Rg1 {[%clk 0:00:03]} 50. h4 {[%clk 0:00:25]}  a5 {[%clk 0:00:03]} 51. h5 {[%clk 0:00:25]}  b4 {[%clk 0:00:04]} 52. h6 {[%clk 0:00:19]}  Rh1 {[%clk 0:00:04]} 53. Re6+ {[%clk 0:00:19]}  Kd5 {[%clk 0:00:05]} 54. Rg6 {[%clk 0:00:19]}  a4 {[%clk 0:00:05]} 55. g4 {[%clk 0:00:16]}  Rh3+ {[%clk 0:00:04]} 56. Kd2 {[%clk 0:00:16]}  Kd4 {[%clk 0:00:03]} 57. Rd6+ {[%clk 0:00:12]}  Kc4 {[%clk 0:00:03]} 58. g5 {[%clk 0:00:09]}  Rh2+ {[%clk 0:00:04]} 59. Ke3 {[%clk 0:00:09]}  b3 {[%clk 0:00:03]} 60. axb3+ {[%clk 0:00:10]}  axb3 {[%clk 0:00:04]} 61. Kf4 {[%clk 0:00:09]}  b2 {[%clk 0:00:03]} 62. Rb6 {[%clk 0:00:09]}  Rf2+ {[%clk 0:00:03]} 63. Kg4 {[%clk 0:00:08]}  Rg2+ {[%clk 0:00:02]} 64. Kh5 {[%clk 0:00:08]}  Kc3 {[%clk 0:00:03]} 65. h7 {[%clk 0:00:08]}  Rh2+ {[%clk 0:00:03]} 66. Kg6 {[%clk 0:00:08]}  Kc2 {[%clk 0:00:04]} 67. Kg7 {[%clk 0:00:08]}  Rh3 {[%clk 0:00:02]} 68. Rxb2+ {[%clk 0:00:07]}  Kxb2 {[%clk 0:00:00]} 69. h8=Q {[%clk 0:00:08]} 1-0


[Site "https://www.chess.com"]

[Event "Titled Tuesday Blitz May 9 Early 2023"]
[White "Zhigalko, Sergei"]
[Black "Zhu, Jiner"]
[WhiteFideId "13502956"]
[BlackFideId "8608059"]
[WhiteElo "2626"]
[BlackElo "2384"]
[Result "1-0"]
[Round "06"]
[TimeControl "180+2"]
[Date "2023.05.09"]
[WhiteClock "0:00:04"]
[BlackClock "0:00:00"]

1. e4 {[%clk 0:03:00]}  e5 {[%clk 0:02:59]} 2. Nf3 {[%clk 0:03:00]}  Nc6 {[%clk 0:02:59]} 3. Bc4 {[%clk 0:03:00]}  Bc5 {[%clk 0:02:59]} 4. b4 {[%clk 0:03:00]}  Bb6 {[%clk 0:02:58]} 5. a4 {[%clk 0:03:01]}  a6 {[%clk 0:02:55]} 6. Nc3 {[%clk 0:03:01]}  Nf6 {[%clk 0:02:51]} 7. Nd5 {[%clk 0:03:01]}  O-O {[%clk 0:02:37]} 8. O-O {[%clk 0:02:59]}  d6 {[%clk 0:02:33]} 9. Nxb6 {[%clk 0:02:56]}  cxb6 {[%clk 0:02:34]} 10. d3 {[%clk 0:02:54]}  Bg4 {[%clk 0:02:31]} 11. c3 {[%clk 0:02:49]}  d5 {[%clk 0:02:24]} 12. exd5 {[%clk 0:02:47]}  Nxd5 {[%clk 0:02:24]} 13. Bd2 {[%clk 0:02:43]}  Rc8 {[%clk 0:02:20]} 14. h3 {[%clk 0:02:41]}  Bh5 {[%clk 0:02:20]} 15. Re1 {[%clk 0:02:38]}  f6 {[%clk 0:02:06]} 16. Qb3 {[%clk 0:02:08]}  Bxf3 {[%clk 0:01:45]} 17. gxf3 {[%clk 0:02:08]}  Ne7 {[%clk 0:01:45]} 18. f4 {[%clk 0:02:08]}  Kh8 {[%clk 0:01:42]} 19. fxe5 {[%clk 0:02:07]}  fxe5 {[%clk 0:01:43]} 20. Rxe5 {[%clk 0:02:07]}  Nf4 {[%clk 0:00:54]} 21. Bxf4 {[%clk 0:01:23]}  Rxf4 {[%clk 0:00:55]} 22. Rae1 {[%clk 0:01:09]}  Ng6 {[%clk 0:00:53]} 23. Re8+ {[%clk 0:01:00]}  Qxe8 {[%clk 0:00:53]} 24. Rxe8+ {[%clk 0:01:00]}  Rxe8 {[%clk 0:00:53]} 25. Qd1 {[%clk 0:01:01]}  Nh4 {[%clk 0:00:44]} 26. Bd5 {[%clk 0:00:58]}  Ref8 {[%clk 0:00:39]} 27. Qe2 {[%clk 0:00:47]}  R4f5 {[%clk 0:00:22]} 28. Bxb7 {[%clk 0:00:40]}  Ng6 {[%clk 0:00:20]} 29. Be4 {[%clk 0:00:35]}  Nf4 {[%clk 0:00:19]} 30. Qe3 {[%clk 0:00:26]}  Rh5 {[%clk 0:00:16]} 31. Qxb6 {[%clk 0:00:22]}  Nxh3+ {[%clk 0:00:16]} 32. Kf1 {[%clk 0:00:20]}  Nxf2 {[%clk 0:00:12]} 33. Qxf2 {[%clk 0:00:20]}  Rxf2+ {[%clk 0:00:11]} 34. Kxf2 {[%clk 0:00:20]}  Kg8 {[%clk 0:00:11]} 35. c4 {[%clk 0:00:02]}  Kf7 {[%clk 0:00:11]} 36. b5 {[%clk 0:00:02]}  axb5 {[%clk 0:00:11]} 37. axb5 {[%clk 0:00:03]}  Ke7 {[%clk 0:00:10]} 38. d4 {[%clk 0:00:02]}  Kd6 {[%clk 0:00:09]} 39. Ke3 {[%clk 0:00:02]}  Rh3+ {[%clk 0:00:09]} 40. Bf3 {[%clk 0:00:02]}  g5 {[%clk 0:00:08]} 41. c5+ {[%clk 0:00:03]}  Kd7 {[%clk 0:00:08]} 42. Ke4 {[%clk 0:00:03]}  Rh4+ {[%clk 0:00:07]} 43. Ke5 {[%clk 0:00:03]}  g4 {[%clk 0:00:07]} 44. Bd5 {[%clk 0:00:02]}  g3 {[%clk 0:00:07]} 45. Bf3 {[%clk 0:00:03]}  Rh5+ {[%clk 0:00:05]} 46. Kf4 {[%clk 0:00:02]}  Rh4+ {[%clk 0:00:05]} 47. Ke3 {[%clk 0:00:02]}  Rh2 {[%clk 0:00:03]} 48. b6 {[%clk 0:00:03]}  Rb2 {[%clk 0:00:03]} 49. c6+ {[%clk 0:00:02]}  Kd6 {[%clk 0:00:03]} 50. c7 {[%clk 0:00:03]}  Rc2 {[%clk 0:00:02]} 51. Kd3 {[%clk 0:00:03]}  Rxc7 {[%clk 0:00:01]} 52. bxc7 {[%clk 0:00:03]}  Kxc7 {[%clk 0:00:02]} 53. Ke4 {[%clk 0:00:02]}  h5 {[%clk 0:00:02]} 54. Kf4 {[%clk 0:00:03]}  h4 {[%clk 0:00:01]} 55. Kg4 {[%clk 0:00:03]}  Kd6 {[%clk 0:00:00]} 56. Kxh4 {[%clk 0:00:04]} 1-0


[Site "https://www.chess.com"]

[Event "Titled Tuesday Blitz May 9 Early 2023"]
[White "Djokic, Mihailo"]
[Black "Galchenko, Matvey"]
[WhiteFideId "976440"]
[BlackFideId "24175480"]
[WhiteElo "2294"]
[BlackElo "2423"]
[Result "0-1"]
[Round "06"]
[TimeControl "180+2"]
[Date "2023.05.09"]
[WhiteClock "0:00:01"]
[BlackClock "0:00:05"]

1. e4 {[%clk 0:03:00]}  e6 {[%clk 0:02:54]} 2. d4 {[%clk 0:03:01]}  d5 {[%clk 0:02:55]} 3. Nc3 {[%clk 0:03:01]}  Bb4 {[%clk 0:02:55]} 4. e5 {[%clk 0:03:02]}  Ne7 {[%clk 0:02:55]} 5. a3 {[%clk 0:03:02]}  Bxc3+ {[%clk 0:02:56]} 6. bxc3 {[%clk 0:03:03]}  c5 {[%clk 0:02:56]} 7. h4 {[%clk 0:03:03]}  Qc7 {[%clk 0:02:56]} 8. h5 {[%clk 0:03:03]}  cxd4 {[%clk 0:02:55]} 9. cxd4 {[%clk 0:03:04]}  Qc3+ {[%clk 0:02:56]} 10. Bd2 {[%clk 0:03:04]}  Qxd4 {[%clk 0:02:56]} 11. Nf3 {[%clk 0:03:03]}  Qe4+ {[%clk 0:02:56]} 12. Be3 {[%clk 0:03:03]}  Nf5 {[%clk 0:02:40]} 13. Bd3 {[%clk 0:02:45]}  Nxe3 {[%clk 0:02:35]} 14. fxe3 {[%clk 0:02:43]}  Qxe3+ {[%clk 0:02:36]} 15. Kf1 {[%clk 0:02:43]}  b6 {[%clk 0:02:26]} 16. h6 {[%clk 0:02:36]}  gxh6 {[%clk 0:02:25]} 17. Qe1 {[%clk 0:02:24]}  Qxe1+ {[%clk 0:02:23]} 18. Rxe1 {[%clk 0:02:24]}  Ba6 {[%clk 0:02:24]} 19. Rxh6 {[%clk 0:02:18]}  Bxd3+ {[%clk 0:02:23]} 20. cxd3 {[%clk 0:02:19]}  Nc6 {[%clk 0:02:14]} 21. Rc1 {[%clk 0:02:17]}  Rc8 {[%clk 0:02:10]} 22. Kf2 {[%clk 0:02:08]}  Ne7 {[%clk 0:02:06]} 23. Rxc8+ {[%clk 0:02:07]}  Nxc8 {[%clk 0:02:07]} 24. Ng5 {[%clk 0:02:04]}  Ne7 {[%clk 0:02:03]} 25. Nxh7 {[%clk 0:02:03]}  Ng6 {[%clk 0:01:30]} 26. Nf6+ {[%clk 0:02:03]}  Ke7 {[%clk 0:01:30]} 27. Rxh8 {[%clk 0:02:02]}  Nxh8 {[%clk 0:01:31]} 28. Ke3 {[%clk 0:02:00]}  Ng6 {[%clk 0:01:30]} 29. d4 {[%clk 0:01:52]}  Kd8 {[%clk 0:01:19]} 30. Nh7 {[%clk 0:01:42]}  b5 {[%clk 0:01:13]} 31. Ng5 {[%clk 0:01:41]}  Ke7 {[%clk 0:01:13]} 32. Kd3 {[%clk 0:01:32]}  Nf4+ {[%clk 0:00:51]} 33. Kc3 {[%clk 0:01:29]}  a5 {[%clk 0:00:38]} 34. g4 {[%clk 0:01:30]}  Ng6 {[%clk 0:00:25]} 35. Nf3 {[%clk 0:01:21]}  Kf8 {[%clk 0:00:19]} 36. Kb3 {[%clk 0:00:56]}  Ne7 {[%clk 0:00:19]} 37. a4 {[%clk 0:00:55]}  b4 {[%clk 0:00:18]} 38. Kc2 {[%clk 0:00:46]}  Nc6 {[%clk 0:00:18]} 39. Kd3 {[%clk 0:00:47]}  Kg7 {[%clk 0:00:19]} 40. Nd2 {[%clk 0:00:47]}  Kg6 {[%clk 0:00:20]} 41. Nf3 {[%clk 0:00:46]}  Nb8 {[%clk 0:00:13]} 42. Kc2 {[%clk 0:00:37]}  Nd7 {[%clk 0:00:11]} 43. Kb2 {[%clk 0:00:25]}  Nb6 {[%clk 0:00:11]} 44. Kb3 {[%clk 0:00:25]}  Nc4 {[%clk 0:00:12]} 45. Ka2 {[%clk 0:00:23]}  Ne3 {[%clk 0:00:09]} 46. g5 {[%clk 0:00:22]}  Nc4 {[%clk 0:00:05]} 47. Kb3 {[%clk 0:00:21]}  Nb6 {[%clk 0:00:05]} 48. Kc2 {[%clk 0:00:07]}  Nxa4 {[%clk 0:00:05]} 49. Nd2 {[%clk 0:00:07]}  Nb6 {[%clk 0:00:05]} 50. Nb3 {[%clk 0:00:07]}  Nc4 {[%clk 0:00:06]} 51. Kd3 {[%clk 0:00:07]}  Kxg5 {[%clk 0:00:06]} 52. Nc5 {[%clk 0:00:07]}  Kf5 {[%clk 0:00:06]} 53. Nb7 {[%clk 0:00:07]}  a4 {[%clk 0:00:06]} 54. Nd6+ {[%clk 0:00:07]}  Kg6 {[%clk 0:00:04]} 55. Nb5 {[%clk 0:00:04]}  a3 {[%clk 0:00:04]} 56. Kc2 {[%clk 0:00:01]}  a2 {[%clk 0:00:05]} 0-1


[Site "https://www.chess.com"]

[Event "Titled Tuesday Blitz May 9 Early 2023"]
[White "Donchenko, Alexander"]
[Black "Sharapov, Evgeny"]
[WhiteFideId "24603295"]
[BlackFideId "14103133"]
[WhiteElo "2554"]
[BlackElo "2367"]
[Result "1-0"]
[Round "06"]
[TimeControl "180+2"]
[Date "2023.05.09"]
[WhiteClock "0:01:22"]
[BlackClock "0:00:48"]

1. Nf3 {[%clk 0:03:00]}  c5 {[%clk 0:02:59]} 2. g3 {[%clk 0:03:01]}  Nc6 {[%clk 0:02:59]} 3. c4 {[%clk 0:03:01]}  e5 {[%clk 0:02:59]} 4. Nc3 {[%clk 0:03:01]}  g6 {[%clk 0:02:59]} 5. Bg2 {[%clk 0:03:01]}  Bg7 {[%clk 0:03:00]} 6. O-O {[%clk 0:03:00]}  d6 {[%clk 0:03:00]} 7. a3 {[%clk 0:03:01]}  a5 {[%clk 0:03:00]} 8. Ne1 {[%clk 0:03:00]}  Be6 {[%clk 0:02:59]} 9. d3 {[%clk 0:03:00]}  Nge7 {[%clk 0:02:59]} 10. Nc2 {[%clk 0:03:00]}  d5 {[%clk 0:02:59]} 11. cxd5 {[%clk 0:03:01]}  Nxd5 {[%clk 0:03:00]} 12. Ne3 {[%clk 0:03:01]}  Nde7 {[%clk 0:02:59]} 13. Nc4 {[%clk 0:02:59]}  O-O {[%clk 0:02:54]} 14. Be3 {[%clk 0:02:59]}  b6 {[%clk 0:02:47]} 15. Qb3 {[%clk 0:02:56]}  Rb8 {[%clk 0:02:40]} 16. Qb5 {[%clk 0:02:53]}  Nd4 {[%clk 0:02:36]} 17. Bxd4 {[%clk 0:02:50]}  exd4 {[%clk 0:02:35]} 18. Ne4 {[%clk 0:02:46]}  Bd7 {[%clk 0:02:32]} 19. Qa6 {[%clk 0:02:26]}  Qc7 {[%clk 0:02:21]} 20. Ned6 {[%clk 0:02:17]}  b5 {[%clk 0:02:15]} 21. Qxa5 {[%clk 0:02:16]}  Qxa5 {[%clk 0:02:07]} 22. Nxa5 {[%clk 0:02:17]}  c4 {[%clk 0:02:01]} 23. dxc4 {[%clk 0:02:12]}  bxc4 {[%clk 0:02:01]} 24. Naxc4 {[%clk 0:02:11]}  Be6 {[%clk 0:01:52]} 25. Rac1 {[%clk 0:02:04]}  Rfd8 {[%clk 0:01:51]} 26. Rfd1 {[%clk 0:01:57]}  Nc8 {[%clk 0:01:38]} 27. Nb7 {[%clk 0:01:52]}  Rd7 {[%clk 0:01:34]} 28. Nc5 {[%clk 0:01:51]}  Rc7 {[%clk 0:01:31]} 29. Nxe6 {[%clk 0:01:43]}  fxe6 {[%clk 0:01:31]} 30. b4 {[%clk 0:01:41]}  Ra7 {[%clk 0:01:25]} 31. Na5 {[%clk 0:01:39]}  Ne7 {[%clk 0:01:22]} 32. Rc5 {[%clk 0:01:35]}  Rb6 {[%clk 0:01:14]} 33. Rdc1 {[%clk 0:01:33]}  h5 {[%clk 0:01:13]} 34. h4 {[%clk 0:01:32]}  d3 {[%clk 0:01:09]} 35. exd3 {[%clk 0:01:30]}  Bb2 {[%clk 0:01:08]} 36. Rc7 {[%clk 0:01:26]}  Rxc7 {[%clk 0:00:56]} 37. Rxc7 {[%clk 0:01:27]}  Nd5 {[%clk 0:00:56]} 38. Rc8+ {[%clk 0:01:22]}  Kg7 {[%clk 0:00:48]} 39. Nc4 {[%clk 0:01:22]} 1-0


[Site "https://www.chess.com"]

[Event "Titled Tuesday Blitz May 9 Early 2023"]
[White "Pranav, V"]
[Black "Mekhitarian, Krikor Sevag"]
[WhiteFideId "25060783"]
[BlackFideId "2107660"]
[WhiteElo "2515"]
[BlackElo "2604"]
[Result "1-0"]
[Round "06"]
[TimeControl "180+2"]
[Date "2023.05.09"]
[WhiteClock "0:00:46"]
[BlackClock "0:00:00"]

1. e4 {[%clk 0:02:37]}  e6 {[%clk 0:02:59]} 2. d3 {[%clk 0:02:36]}  d5 {[%clk 0:03:00]} 3. Nd2 {[%clk 0:02:37]}  Nc6 {[%clk 0:02:56]} 4. Ngf3 {[%clk 0:02:36]}  e5 {[%clk 0:02:53]} 5. c3 {[%clk 0:02:36]}  a5 {[%clk 0:02:53]} 6. Be2 {[%clk 0:02:34]}  Nf6 {[%clk 0:02:53]} 7. O-O {[%clk 0:02:34]}  Be7 {[%clk 0:02:50]} 8. Re1 {[%clk 0:02:34]}  O-O {[%clk 0:02:49]} 9. Bf1 {[%clk 0:02:34]}  dxe4 {[%clk 0:02:50]} 10. dxe4 {[%clk 0:02:35]}  h6 {[%clk 0:02:48]} 11. Qc2 {[%clk 0:02:31]}  Be6 {[%clk 0:02:36]} 12. Nc4 {[%clk 0:02:28]}  Nd7 {[%clk 0:02:34]} 13. h3 {[%clk 0:02:26]}  a4 {[%clk 0:02:31]} 14. Be3 {[%clk 0:02:21]}  Qc8 {[%clk 0:02:22]} 15. b4 {[%clk 0:02:15]}  axb3 {[%clk 0:02:09]} 16. axb3 {[%clk 0:02:16]}  b5 {[%clk 0:02:01]} 17. Nb2 {[%clk 0:02:14]}  Qb7 {[%clk 0:01:49]} 18. Nd3 {[%clk 0:02:02]}  b4 {[%clk 0:01:42]} 19. c4 {[%clk 0:01:49]}  Rxa1 {[%clk 0:01:32]} 20. Rxa1 {[%clk 0:01:48]}  Ra8 {[%clk 0:01:32]} 21. Rd1 {[%clk 0:01:48]}  Qa6 {[%clk 0:01:21]} 22. Bc1 {[%clk 0:01:43]}  f6 {[%clk 0:01:09]} 23. Bb2 {[%clk 0:01:39]}  Nc5 {[%clk 0:01:04]} 24. Nh4 {[%clk 0:01:35]}  Nxd3 {[%clk 0:01:02]} 25. Bxd3 {[%clk 0:01:35]}  Bc5 {[%clk 0:00:59]} 26. Nf5 {[%clk 0:01:35]}  Qb6 {[%clk 0:00:56]} 27. Qe2 {[%clk 0:01:30]}  Ra2 {[%clk 0:00:55]} 28. Bb1 {[%clk 0:01:28]}  Bxf2+ {[%clk 0:00:34]} 29. Kf1 {[%clk 0:01:27]}  Rxb2 {[%clk 0:00:35]} 30. Qxb2 {[%clk 0:01:26]}  Bc5 {[%clk 0:00:30]} 31. Qe2 {[%clk 0:01:27]}  Bxf5 {[%clk 0:00:25]} 32. exf5 {[%clk 0:01:28]}  Nd4 {[%clk 0:00:23]} 33. Qh5 {[%clk 0:01:14]}  Qc6 {[%clk 0:00:19]} 34. Rd3 {[%clk 0:01:06]}  Qe4 {[%clk 0:00:13]} 35. Qe8+ {[%clk 0:00:50]}  Kh7 {[%clk 0:00:13]} 36. Qg6+ {[%clk 0:00:49]}  Kh8 {[%clk 0:00:13]} 37. Qxg7+ {[%clk 0:00:49]}  Kxg7 {[%clk 0:00:11]} 38. Rg3+ {[%clk 0:00:50]}  Kf8 {[%clk 0:00:08]} 39. Bxe4 {[%clk 0:00:50]}  Ke7 {[%clk 0:00:00]} 40. Ke1 {[%clk 0:00:46]} 1-0


[Site "https://www.chess.com"]

[Event "Titled Tuesday Blitz May 9 Early 2023"]
[White "Nguyen, Ngoc Truong Son"]
[Black "Kohler, Aran"]
[WhiteFideId "12401110"]
[BlackFideId "1002856"]
[WhiteElo "2556"]
[BlackElo "2374"]
[Result "1-0"]
[Round "06"]
[TimeControl "180+2"]
[Date "2023.05.09"]
[WhiteClock "0:00:58"]
[BlackClock "0:00:37"]

1. d4 {[%clk 0:03:00]}  Nf6 {[%clk 0:02:59]} 2. c4 {[%clk 0:03:00]}  c5 {[%clk 0:02:58]} 3. d5 {[%clk 0:03:00]}  b5 {[%clk 0:02:58]} 4. cxb5 {[%clk 0:03:00]}  a6 {[%clk 0:02:59]} 5. bxa6 {[%clk 0:02:59]}  g6 {[%clk 0:02:59]} 6. Nc3 {[%clk 0:03:00]}  Bxa6 {[%clk 0:02:58]} 7. e4 {[%clk 0:03:00]}  Bxf1 {[%clk 0:02:57]} 8. Kxf1 {[%clk 0:03:01]}  d6 {[%clk 0:02:58]} 9. h3 {[%clk 0:03:01]}  Bg7 {[%clk 0:02:58]} 10. Nf3 {[%clk 0:03:00]}  O-O {[%clk 0:02:58]} 11. g3 {[%clk 0:03:00]}  Nbd7 {[%clk 0:02:54]} 12. Kg2 {[%clk 0:03:00]}  Qb6 {[%clk 0:02:52]} 13. Qe2 {[%clk 0:02:59]}  Rfb8 {[%clk 0:02:52]} 14. a4 {[%clk 0:02:58]}  Ne8 {[%clk 0:02:49]} 15. h4 {[%clk 0:02:29]}  h6 {[%clk 0:02:44]} 16. h5 {[%clk 0:02:28]}  g5 {[%clk 0:02:44]} 17. Nb5 {[%clk 0:02:08]}  Nc7 {[%clk 0:02:39]} 18. Bxg5 {[%clk 0:02:02]}  Nxb5 {[%clk 0:02:21]} 19. axb5 {[%clk 0:01:56]}  Rxa1 {[%clk 0:02:20]} 20. Rxa1 {[%clk 0:01:56]}  hxg5 {[%clk 0:02:20]} 21. Nxg5 {[%clk 0:01:56]}  Qxb5 {[%clk 0:02:20]} 22. Qg4 {[%clk 0:01:39]}  Ne5 {[%clk 0:02:04]} 23. Qf5 {[%clk 0:01:38]}  Qxb2 {[%clk 0:01:52]} 24. Ra7 {[%clk 0:01:34]}  Re8 {[%clk 0:01:19]} 25. h6 {[%clk 0:01:00]}  Bf6 {[%clk 0:01:09]} 26. Rxe7 {[%clk 0:00:59]}  Rxe7 {[%clk 0:00:37]} 27. Qc8+ {[%clk 0:00:58]} 1-0


[Site "https://www.chess.com"]

[Event "Titled Tuesday Blitz May 9 Early 2023"]
[White "Ismagilov, Damir"]
[Black "Yuan, Qingyu"]
[WhiteFideId "34199982"]
[BlackFideId "8609772"]
[WhiteElo "2143"]
[BlackElo "2359"]
[Result "0-1"]
[Round "06"]
[TimeControl "180+2"]
[Date "2023.05.09"]
[WhiteClock "0:00:06"]
[BlackClock "0:00:05"]

1. d4 {[%clk 0:03:00]}  d5 {[%clk 0:02:57]} 2. c4 {[%clk 0:03:01]}  c6 {[%clk 0:02:57]} 3. Nc3 {[%clk 0:03:01]}  Nf6 {[%clk 0:02:57]} 4. Nf3 {[%clk 0:03:02]}  e6 {[%clk 0:02:57]} 5. Bg5 {[%clk 0:03:03]}  Nbd7 {[%clk 0:02:53]} 6. cxd5 {[%clk 0:03:02]}  exd5 {[%clk 0:02:47]} 7. e3 {[%clk 0:03:02]}  Be7 {[%clk 0:02:42]} 8. Bd3 {[%clk 0:03:03]}  Ne4 {[%clk 0:02:28]} 9. Bf4 {[%clk 0:02:51]}  Qa5 {[%clk 0:02:15]} 10. Qc2 {[%clk 0:02:30]}  Ndf6 {[%clk 0:02:10]} 11. O-O {[%clk 0:02:28]}  Nxc3 {[%clk 0:02:06]} 12. bxc3 {[%clk 0:02:29]}  O-O {[%clk 0:02:05]} 13. c4 {[%clk 0:02:26]}  h6 {[%clk 0:01:47]} 14. Ne5 {[%clk 0:02:23]}  c5 {[%clk 0:01:40]} 15. dxc5 {[%clk 0:01:45]}  Qxc5 {[%clk 0:01:36]} 16. Rfd1 {[%clk 0:01:39]}  Be6 {[%clk 0:01:33]} 17. Rac1 {[%clk 0:01:28]}  Rac8 {[%clk 0:01:27]} 18. Qb1 {[%clk 0:01:28]}  Qb6 {[%clk 0:00:51]} 19. Qa1 {[%clk 0:01:17]}  Qa5 {[%clk 0:00:43]} 20. h3 {[%clk 0:01:11]}  Rc5 {[%clk 0:00:34]} 21. cxd5 {[%clk 0:01:03]}  Nxd5 {[%clk 0:00:34]} 22. Rxc5 {[%clk 0:00:58]}  Bxc5 {[%clk 0:00:30]} 23. Bg3 {[%clk 0:00:55]}  Bb4 {[%clk 0:00:27]} 24. Nc4 {[%clk 0:00:54]}  Qa4 {[%clk 0:00:25]} 25. Rc1 {[%clk 0:00:53]}  Rc8 {[%clk 0:00:24]} 26. Kh2 {[%clk 0:00:32]}  Be7 {[%clk 0:00:23]} 27. Qb2 {[%clk 0:00:22]}  b6 {[%clk 0:00:16]} 28. Ne5 {[%clk 0:00:13]}  Rxc1 {[%clk 0:00:11]} 29. Qxc1 {[%clk 0:00:14]}  Qxa2 {[%clk 0:00:11]} 30. Qc6 {[%clk 0:00:13]}  Qa3 {[%clk 0:00:08]} 31. Bc4 {[%clk 0:00:12]}  Qc5 {[%clk 0:00:07]} 32. Qa8+ {[%clk 0:00:11]}  Bf8 {[%clk 0:00:06]} 33. Qxa7 {[%clk 0:00:11]}  b5 {[%clk 0:00:05]} 34. Bb3 {[%clk 0:00:06]}  Qxa7 {[%clk 0:00:05]} 0-1


[Site "https://www.chess.com"]

[Event "Titled Tuesday Blitz May 9 Early 2023"]
[White "Prohaszka, Peter"]
[Black "Danielyan, Vahe"]
[WhiteFideId "726265"]
[BlackFideId "13304828"]
[WhiteElo "2626"]
[BlackElo "2423"]
[Result "1-0"]
[Round "06"]
[TimeControl "180+2"]
[Date "2023.05.09"]
[WhiteClock "0:00:04"]
[BlackClock "0:00:00"]

1. d4 {[%clk 0:02:54]}  Nf6 {[%clk 0:02:59]} 2. c3 {[%clk 0:02:52]}  d5 {[%clk 0:02:57]} 3. Nf3 {[%clk 0:02:52]}  Bf5 {[%clk 0:02:52]} 4. Qb3 {[%clk 0:02:50]}  Qc8 {[%clk 0:02:46]} 5. Bf4 {[%clk 0:02:43]}  Nbd7 {[%clk 0:02:45]} 6. e3 {[%clk 0:02:43]}  e6 {[%clk 0:02:45]} 7. c4 {[%clk 0:02:42]}  Be7 {[%clk 0:02:26]} 8. Nc3 {[%clk 0:02:42]}  c6 {[%clk 0:02:21]} 9. Rc1 {[%clk 0:02:40]}  O-O {[%clk 0:02:21]} 10. h3 {[%clk 0:02:36]}  a5 {[%clk 0:02:16]} 11. cxd5 {[%clk 0:02:35]}  exd5 {[%clk 0:01:50]} 12. Be2 {[%clk 0:02:34]}  Re8 {[%clk 0:01:23]} 13. O-O {[%clk 0:02:34]}  Nf8 {[%clk 0:01:17]} 14. Ne5 {[%clk 0:02:19]}  Ng6 {[%clk 0:01:16]} 15. Bh2 {[%clk 0:02:10]}  Nxe5 {[%clk 0:01:02]} 16. dxe5 {[%clk 0:02:08]}  Ne4 {[%clk 0:00:59]} 17. Nxd5 {[%clk 0:01:41]}  Nd2 {[%clk 0:00:59]} 18. Nxe7+ {[%clk 0:01:41]}  Rxe7 {[%clk 0:00:54]} 19. Qa3 {[%clk 0:01:42]}  Nxf1 {[%clk 0:00:44]} 20. Qxe7 {[%clk 0:01:39]}  Nxh2 {[%clk 0:00:45]} 21. Kxh2 {[%clk 0:01:39]}  Qe6 {[%clk 0:00:37]} 22. Qxb7 {[%clk 0:01:25]}  Rd8 {[%clk 0:00:36]} 23. Qc7 {[%clk 0:01:01]}  Rc8 {[%clk 0:00:32]} 24. Qd6 {[%clk 0:00:58]}  Qxa2 {[%clk 0:00:31]} 25. Rxc6 {[%clk 0:00:57]}  Re8 {[%clk 0:00:30]} 26. Rc7 {[%clk 0:00:37]}  Qxb2 {[%clk 0:00:25]} 27. Bc4 {[%clk 0:00:35]}  Bg6 {[%clk 0:00:22]} 28. e6 {[%clk 0:00:27]}  fxe6 {[%clk 0:00:18]} 29. Bxe6+ {[%clk 0:00:24]}  Kh8 {[%clk 0:00:18]} 30. Bf7 {[%clk 0:00:14]}  Bxf7 {[%clk 0:00:13]} 31. Rxf7 {[%clk 0:00:15]}  Rg8 {[%clk 0:00:09]} 32. Qf4 {[%clk 0:00:09]}  h6 {[%clk 0:00:05]} 33. Ra7 {[%clk 0:00:08]}  Qb5 {[%clk 0:00:03]} 34. Qc7 {[%clk 0:00:06]}  Qf5 {[%clk 0:00:03]} 35. Qf4 {[%clk 0:00:05]}  Qc5 {[%clk 0:00:02]} 36. Ra6 {[%clk 0:00:04]}  Qb5 {[%clk 0:00:00]} 37. Rxh6+ {[%clk 0:00:04]} 1-0


[Site "https://www.chess.com"]